bitfinex-derivatives/quotes_BTCF0:USTF0_20250912
["timestamp","ask_amount","ask_price","bid_price","bid_amount"]
[1757687605057,0.3608,115260.0,115250.0,0.44908161]
[1757687605766,0.38264,115260.0,115250.0,0.44908161]
[1757687606466,0.39655,115270.0,115260.0,0.0344]
[1757687606771,0.39655,115270.0,115260.0,0.19238161]
[1757687606961,0.39655,115270.0,115260.0,0.02149]
[1757687607160,0.39655,115270.0,115260.0,0.17947161]
[1757687607466,0.39655,115270.0,115260.0,0.02149]
[1757687607765,0.39655,115270.0,115260.0,0.18247161]
[1757687608558,0.55453161,115270.0,115260.0,0.02449]
[1757687609468,0.55453161,115270.0,115260.0,0.003]
[1757687609858,0.39655,115270.0,115260.0,0.02449]
[1757687610061,0.55453161,115270.0,115260.0,0.02449]
[1757687610259,0.80453161,115270.0,115260.0,0.003]
[1757687611368,0.64655,115270.0,115260.0,0.003]
[1757687611667,0.80453161,115270.0,115260.0,0.003]
[1757687612467,1.61989161,115270.0,115260.0,0.003]
[1757687618370,1.46191,115270.0,115260.0,0.003]
[1757687618559,1.61993161,115270.0,115260.0,0.003]
[1757687619068,1.77791322,115270.0,115260.0,0.003]
[1757687619270,1.52791322,115270.0,115260.0,0.003]
[1757687619975,1.55392042,115270.0,115260.0,0.003]
[1757687620667,1.39593881,115270.0,115260.0,0.003]
[1757687621876,0.58313881,115270.0,115260.0,0.003]
[1757687622176,1.39593881,115270.0,115260.0,0.003]
[1757687622577,0.58313881,115270.0,115260.0,0.003]
[1757687622771,1.39593881,115270.0,115260.0,0.003]
[1757687623478,0.58313881,115270.0,115260.0,0.003]
[1757687623675,1.39593881,115270.0,115260.0,0.003]
[1757687626179,1.39600706,115270.0,115260.0,0.003]
[1757687626972,0.58320706,115270.0,115260.0,0.003]
[1757687627176,0.58320706,115270.0,115260.0,0.02449]
[1757687627476,1.39696706,115270.0,115260.0,0.02349]
[1757687627674,0.42622545,115270.0,115260.0,0.02149]
[1757687627880,1.39796706,115270.0,115260.0,0.02149]
[1757687628178,0.58520706,115270.0,115260.0,0.02149]
[1757687628374,1.23998545,115270.0,115260.0,0.17947161]
[1757687628575,0.42722545,115270.0,115260.0,0.42947161]
[1757687628777,1.23998545,115270.0,115260.0,0.42947161]
[1757687628982,1.2399877,115270.0,115260.0,0.42947161]
[1757687629676,1.2399877,115270.0,115260.0,0.27149]
[1757687629879,1.39796931,115270.0,115260.0,0.27149]
[1757687631375,1.39796931,115270.0,115260.0,0.25]
[1757687631683,0.03549,115250.0,115240.0,0.19963177]
[1757687631878,0.39629,115250.0,115240.0,0.19963177]
[1757687633387,0.39629,115250.0,115240.0,0.04165016]
[1757687633771,0.39629,115250.0,115240.0,0.20063177]
[1757687634177,0.39629,115250.0,115240.0,0.04265016]
[1757687634383,0.39629,115250.0,115240.0,0.20063177]
[1757687640391,0.39629,115250.0,115240.0,0.51700728]
[1757687642281,0.39629,115250.0,115240.0,0.04265016]
[1757687642590,0.39629,115250.0,115240.0,0.51700728]
[1757687643093,0.39629,115250.0,115240.0,0.04265016]
[1757687643290,0.39629,115250.0,115240.0,0.51700728]
[1757687646494,0.39889,115250.0,115240.0,0.51700728]
[1757687647087,0.63606856,115250.0,115240.0,0.27982872]
[1757687647791,0.39889,115250.0,115240.0,0.27982872]
[1757687647990,0.63606856,115250.0,115240.0,0.27982872]
[1757687648888,0.63606856,115250.0,115240.0,0.51700728]
[1757687650797,0.63606856,115250.0,115240.0,0.04265016]
[1757687650991,0.63606856,115250.0,115240.0,0.51700728]
[1757687651394,0.63606856,115250.0,115240.0,0.04265016]
[1757687651599,0.63606856,115250.0,115240.0,0.27982872]
[1757687651999,0.63606856,115250.0,115240.0,0.04265016]
[1757687652195,0.63606856,115250.0,115240.0,0.27982872]
[1757687652703,0.99686856,115250.0,115240.0,0.27982872]
[1757687652905,0.75969,115250.0,115240.0,0.27982872]
[1757687653205,0.99686856,115250.0,115240.0,0.27982872]
[1757687653906,0.99686856,115250.0,115240.0,0.51700728]
[1757687654304,0.75969,115250.0,115240.0,0.51700728]
[1757687655503,0.75969,115250.0,115240.0,0.52991728]
[1757687655702,0.0026,115250.0,115240.0,0.93991728]
[1757687655908,0.02591,115250.0,115240.0,1.75223728]
[1757687656707,0.02591,115250.0,115240.0,1.59223728]
[1757687656910,0.02591,115250.0,115240.0,1.11788016]
[1757687657104,0.02591,115250.0,115240.0,1.74223728]
[1757687657503,0.02591,115250.0,115240.0,1.75223728]
[1757687658308,0.02591,115250.0,115240.0,1.59223728]
[1757687659305,0.40065,115250.0,115240.0,1.57924728]
[1757687659607,0.63782856,115250.0,115240.0,0.85489016]
[1757687659802,0.63782856,115250.0,115240.0,1.09206872]
[1757687660108,0.63782856,115250.0,115240.0,0.27982872]
[1757687660310,0.40065,115250.0,115240.0,0.27982872]
[1757687660505,0.63782856,115250.0,115240.0,0.25966856]
[1757687661108,0.63782856,115250.0,115240.0,0.49684712]
[1757687661311,0.63782856,115250.0,115240.0,0.25966856]
[1757687661610,0.40065,115250.0,115240.0,0.25966856]
[1757687661811,0.63782856,115250.0,115240.0,0.25966856]
[1757687665815,0.63782856,115250.0,115240.0,0.49684712]
[1757687666615,0.40065,115250.0,115240.0,0.49684712]
[1757687666818,0.63782856,115250.0,115240.0,0.49684712]
[1757687667118,0.63782856,115250.0,115240.0,0.25966856]
[1757687668414,0.63782856,115250.0,115240.0,0.49684712]
[1757687668614,0.40065,115250.0,115240.0,0.49684712]
[1757687669814,0.40065,115250.0,115240.0,0.50887712]
[1757687670613,0.38671,115250.0,115240.0,0.50887712]
[1757687670812,0.3634,115250.0,115240.0,0.67887712]
[1757687671113,0.38669,115250.0,115240.0,0.67887712]
[1757687671316,0.38669,115250.0,115240.0,0.03452]
[1757687671506,0.38669,115250.0,115240.0,0.50887712]
[1757687671711,0.38669,115250.0,115240.0,0.65887712]
[1757687671911,0.38669,115250.0,115240.0,0.50887712]
[1757687672721,0.39984,115250.0,115240.0,0.02249]
[1757687672920,0.39984,115250.0,115240.0,0.83445]
[1757687673120,0.39984,115250.0,115240.0,1.30880712]
[1757687674320,0.39984,115250.0,115240.0,1.32083712]
[1757687674520,0.39984,115250.0,115240.0,0.84648]
[1757687674720,0.39984,115250.0,115240.0,1.32083712]
[1757687675114,0.39984,115250.0,115240.0,0.49684712]
[1757687675418,0.39984,115250.0,115240.0,1.30868712]
[1757687675618,0.39984,115250.0,115240.0,0.83433]
[1757687675819,0.39984,115250.0,115240.0,1.30868712]
[1757687677621,0.88701856,115250.0,115240.0,0.25966856]
[1757687678025,0.64984,115250.0,115240.0,0.25966856]
[1757687678327,0.88701856,115250.0,115240.0,0.25966856]
[1757687679316,0.63701856,115250.0,115240.0,0.25866856]
[1757687680127,0.63701856,115250.0,115240.0,0.49584712]
[1757687680926,0.63701856,115250.0,115240.0,0.02149]
[1757687681125,0.63701856,115250.0,115240.0,0.49584712]
[1757687681726,0.63701856,115250.0,115240.0,0.02149]
[1757687681925,0.63701856,115250.0,115240.0,0.49584712]
[1757687682728,0.63701856,115250.0,115240.0,0.25866856]
[1757687682930,0.63701856,115250.0,115240.0,0.02149]
[1757687683132,0.39984,115250.0,115240.0,0.02149]
[1757687683335,0.63701856,115250.0,115240.0,0.25866856]
[1757687684732,0.39984,115250.0,115240.0,0.25866856]
[1757687684934,0.63701856,115250.0,115240.0,0.25866856]
[1757687685430,0.63701856,115250.0,115240.0,0.49584712]
[1757687685827,0.38669,115250.0,115240.0,0.50787712]
[1757687686735,0.39984,115250.0,115240.0,0.49584712]
[1757687687827,0.39984,115250.0,115240.0,0.25866856]
[1757687688131,0.63701856,115250.0,115240.0,0.25866856]
[1757687688833,0.63701856,115250.0,115240.0,0.49584712]
[1757687689225,0.63701856,115250.0,115240.0,0.50787712]
[1757687689226,0.39984,115250.0,115240.0,0.50787712]
[1757687689421,0.39984,115250.0,115240.0,0.49584712]
[1757687690136,0.63701856,115250.0,115240.0,0.49584712]
[1757687690328,0.63701856,115250.0,115240.0,0.02149]
[1757687690530,0.39984,115250.0,115240.0,0.49584712]
[1757687690730,0.63701856,115250.0,115240.0,0.49584712]
[1757687691234,0.39984,115250.0,115240.0,0.02149]
[1757687691537,0.63701856,115250.0,115240.0,0.49584712]
[1757687692137,0.63701856,115250.0,115240.0,0.02149]
[1757687692435,0.63701856,115250.0,115240.0,0.49584712]
[1757687692925,0.39984,115250.0,115240.0,0.49584712]
[1757687693132,0.39984,115250.0,115240.0,0.50787712]
[1757687694233,0.39984,115250.0,115240.0,0.49584712]
[1757687694829,0.63701856,115250.0,115240.0,0.49584712]
[1757687695337,0.63701856,115250.0,115240.0,0.02149]
[1757687695937,0.63701856,115250.0,115240.0,0.25866856]
[1757687696437,0.39984,115250.0,115240.0,0.25866856]
[1757687696740,0.63701856,115250.0,115240.0,0.25866856]
[1757687697233,0.39984,115250.0,115240.0,0.25866856]
[1757687697538,0.63701856,115250.0,115240.0,0.25866856]
[1757687698237,0.63701856,115250.0,115240.0,0.02149]
[1757687698732,0.63701856,115250.0,115240.0,0.25866856]
[1757687698935,0.63701856,115250.0,115240.0,0.02149]
[1757687699134,0.63701856,115250.0,115240.0,0.25866856]
[1757687699538,0.39984,115250.0,115240.0,0.25866856]
[1757687699838,0.63701856,115250.0,115240.0,0.25866856]
[1757687700138,0.63701856,115250.0,115240.0,0.49584712]
[1757687700333,0.39984,115250.0,115240.0,0.25866856]
[1757687700533,0.39984,115250.0,115240.0,0.17961699]
[1757687701038,0.39984,115250.0,115240.0,0.02149]
[1757687701438,0.55796699,115250.0,115240.0,0.02149]
[1757687701639,0.03518,115240.0,115230.0,0.90163285]
[1757687701938,0.39598,115240.0,115230.0,0.90163285]
[1757687702140,0.39598,115240.0,115230.0,1.05975984]
[1757687702345,0.39598,115240.0,115230.0,0.24863984]
[1757687702529,0.39598,115240.0,115230.0,0.09051285]
[1757687702733,0.39598,115240.0,115220.0,1.21341712]
[1757687702734,0.71223398,115240.0,115220.0,0.54751411]
[1757687702932,0.19330699,115230.0,115220.0,1.21454183]
[1757687703143,0.03518,115230.0,115220.0,1.37266882]
[1757687703528,0.03518,115230.0,115220.0,0.56154882]
[1757687704531,0.03518,115230.0,115220.0,0.40342183]
[1757687704729,0.03518,115230.0,115220.0,0.73258581]
[1757687704730,0.02392,115230.0,115220.0,0.73258581]
[1757687704937,0.02392,115230.0,115220.0,0.88358581]
[1757687705142,0.0026,115230.0,115220.0,0.56733183]
[1757687705444,0.0026,115230.0,115220.0,1.15358581]
[1757687705948,0.0026,115230.0,115220.0,1.24034341]
[1757687706132,0.0026,115230.0,115220.0,1.15358581]
[1757687706544,0.0026,115230.0,115220.0,0.98358581]
[1757687706735,0.0026,115230.0,115220.0,1.21360805]
[1757687706935,0.0026,115230.0,115220.0,1.05360805]
[1757687707137,0.0026,115230.0,115220.0,1.24360805]
[1757687707338,0.0026,115230.0,115220.0,1.25222206]
[1757687707541,0.0026,115230.0,115220.0,1.06222206]
[1757687707742,0.0026,115230.0,115220.0,0.74596808]
[1757687707942,0.0026,115230.0,115220.0,1.87322206]
[1757687708142,0.0026,115230.0,115220.0,2.04322206]
[1757687708544,0.0026,115230.0,115220.0,2.03322206]
[1757687710542,0.0026,115230.0,115220.0,1.87322206]
[1757687710746,0.0026,115230.0,115220.0,2.05322206]
[1757687711141,0.0026,115230.0,115220.0,1.87322206]
[1757687711341,0.0026,115230.0,115220.0,2.04322206]
[1757687712340,0.37395,115250.0,115230.0,0.01203]
[1757687712540,0.39527,115250.0,115240.0,0.19356699]
[1757687712848,0.03518,115240.0,115230.0,0.83341]
[1757687713047,0.39598,115240.0,115230.0,0.99153699]
[1757687714141,0.39598,115240.0,115230.0,0.18065699]
[1757687714443,0.80410699,115240.0,115230.0,0.02253]
[1757687714647,0.80410699,115240.0,115220.0,1.17264]
[1757687714648,0.03518,115230.0,115220.0,1.19517]
[1757687714946,0.03518,115230.0,115220.0,1.35229699]
[1757687715151,0.03518,115230.0,115220.0,1.19417]
[1757687715445,0.03518,115230.0,115220.0,0.83337]
[1757687715647,0.44330699,115230.0,115220.0,0.02253]
[1757687715851,0.01386,115220.0,115210.0,0.40385021]
[1757687716152,0.03518,115220.0,115210.0,1.3727772]
[1757687716342,0.03518,115220.0,115210.0,1.44360366]
[1757687717042,0.03518,115220.0,115210.0,1.44460366]
[1757687717242,0.03518,115220.0,115210.0,1.09234361]
[1757687717648,0.39598,115220.0,115210.0,1.09234361]
[1757687717957,0.39598,115220.0,115210.0,1.08380366]
[1757687719052,0.39598,115220.0,115210.0,0.04405021]
[1757687719253,0.55410699,115220.0,115210.0,0.85481021]
[1757687719447,0.55410699,115220.0,115210.0,0.04605021]
[1757687720055,0.39598,115220.0,115210.0,0.04605021]
[1757687720458,0.39598,115220.0,115210.0,0.2041772]
[1757687721941,0.39598,115220.0,115210.0,0.04605021]
[1757687722344,0.39598,115220.0,115210.0,0.2041772]
[1757687723556,0.39598,115220.0,115210.0,0.04605021]
[1757687723854,0.39598,115220.0,115210.0,0.2041772]
[1757687724056,0.55410699,115220.0,115210.0,0.04605021]
[1757687724257,0.71223398,115220.0,115210.0,0.04605021]
[1757687724459,0.71223398,115220.0,115210.0,0.003]
[1757687724460,0.72968491,115220.0,115210.0,0.003]
[1757687724958,0.97968491,115220.0,115210.0,0.003]
[1757687725154,0.01283,115180.0,115170.0,0.3608]
[1757687725360,0.01283,115180.0,115170.0,0.12331]
[1757687725361,0.71133398,115180.0,115170.0,0.12331]
[1757687725561,0.55320699,115180.0,115170.0,0.02331]
[1757687726362,0.39508,115180.0,115170.0,0.02331]
[1757687726564,0.55320699,115180.0,115170.0,0.02331]
[1757687726763,0.55320699,115180.0,115170.0,0.02531]
[1757687727360,0.71133398,115180.0,115170.0,0.003]
[1757687727560,0.96133398,115180.0,115170.0,0.003]
[1757687728165,0.64508,115180.0,115170.0,0.003]
[1757687728363,0.96133398,115180.0,115170.0,0.003]
[1757687732369,1.02956169,115180.0,115170.0,0.003]
[1757687734271,1.18768868,115180.0,115170.0,0.003]
[1757687734473,1.02956169,115180.0,115170.0,0.003]
[1757687735183,1.84024169,115180.0,115170.0,0.003]
[1757687736675,1.02956169,115180.0,115170.0,0.003]
[1757687736867,1.84024169,115180.0,115170.0,0.003]
[1757687737878,0.71330771,115180.0,115170.0,0.003]
[1757687738082,1.84024169,115180.0,115170.0,0.003]
[1757687739475,1.59024169,115180.0,115170.0,0.003]
[1757687741474,0.77956169,115180.0,115170.0,0.003]
[1757687741781,1.59024169,115180.0,115170.0,0.003]
[1757687741981,0.77956169,115180.0,115170.0,0.003]
[1757687742182,1.59020169,115180.0,115170.0,0.003]
[1757687742781,0.77956169,115180.0,115170.0,0.003]
[1757687742981,1.59020169,115180.0,115170.0,0.02631]
[1757687743179,1.61611803,115180.0,115170.0,0.003]
[1757687743785,1.61711803,115180.0,115170.0,0.002]
[1757687743973,0.03428,115160.0,115150.0,0.20153053]
[1757687744179,0.39508,115160.0,115150.0,0.20153053]
[1757687745387,0.39508,115160.0,115150.0,0.04340354]
[1757687745589,0.39508,115170.0,115160.0,0.03534]
[1757687745782,0.4210246,115170.0,115160.0,0.52159398]
[1757687745978,0.4210246,115170.0,115160.0,0.77159398]
[1757687746179,0.39508,115170.0,115160.0,0.77159398]
[1757687746488,0.03428,115170.0,115160.0,0.60159398]
[1757687746983,0.03428,115170.0,115160.0,0.28534]
[1757687747185,0.03428,115170.0,115160.0,0.60159398]
[1757687747687,0.39508,115170.0,115160.0,0.60159398]
[1757687748077,0.39508,115170.0,115160.0,0.44346699]
[1757687748278,0.39508,115170.0,115160.0,0.43143699]
[1757687749089,0.39508,115170.0,115160.0,0.02331]
[1757687749090,0.55320699,115170.0,115160.0,0.02331]
[1757687749385,0.39508,115170.0,115160.0,0.02331]
[1757687749689,0.55320699,115170.0,115160.0,0.18143699]
[1757687749989,0.55320699,115170.0,115160.0,0.02331]
[1757687750186,0.55320699,115170.0,115160.0,0.18143699]
[1757687750788,0.57919958,115170.0,115160.0,0.02331]
[1757687750989,0.57919958,115170.0,115160.0,0.18143699]
[1757687751379,0.57919958,115170.0,115160.0,0.02331]
[1757687751575,0.57919958,115170.0,115160.0,0.18143699]
[1757687752380,0.42107259,115170.0,115160.0,0.18143699]
[1757687752688,0.57919958,115170.0,115160.0,0.18143699]
[1757687752890,0.57919958,115170.0,115160.0,0.02331]
[1757687753188,0.57919958,115170.0,115160.0,0.18143699]
[1757687753788,0.57919958,115170.0,115160.0,0.02331]
[1757687753993,0.57919958,115170.0,115160.0,0.18143699]
[1757687754192,0.42107259,115170.0,115160.0,0.18143699]
[1757687754394,0.57919958,115170.0,115160.0,0.02331]
[1757687754588,0.57919958,115170.0,115160.0,0.18143699]
[1757687755292,0.57919958,115170.0,115160.0,0.02331]
[1757687755590,0.57919958,115170.0,115160.0,0.18143699]
[1757687755778,0.42107259,115170.0,115160.0,0.18143699]
[1757687755984,0.57919958,115170.0,115160.0,0.18143699]
[1757687756588,0.57919958,115170.0,115160.0,0.19434699]
[1757687756790,0.42107259,115170.0,115160.0,0.19434699]
[1757687756991,0.40824259,115170.0,115160.0,0.62284787]
[1757687757786,0.40824259,115170.0,115160.0,0.46472088]
[1757687758689,0.04744259,115170.0,115160.0,0.62284787]
[1757687760092,0.40824259,115170.0,115160.0,0.30659389]
[1757687760291,0.40824259,115170.0,115160.0,0.62284787]
[1757687760890,0.38225,115170.0,115160.0,0.62284787]
[1757687761892,0.39575,115170.0,115160.0,0.45181088]
[1757687762395,0.63325745,115170.0,115160.0,0.76869879]
[1757687763393,0.63325745,115170.0,115160.0,0.29368389]
[1757687763594,0.63325745,115170.0,115160.0,0.76869879]
[1757687764096,0.63325745,115170.0,115160.0,0.78160879]
[1757687764597,0.63325745,115170.0,115160.0,0.29368389]
[1757687764799,0.63325745,115170.0,115160.0,0.76869879]
[1757687765600,0.63325745,115170.0,115160.0,0.29368389]
[1757687765798,0.63325745,115170.0,115160.0,0.76869879]
[1757687766095,0.39575,115170.0,115160.0,0.76869879]
[1757687766302,0.63325745,115170.0,115160.0,0.29368389]
[1757687766602,0.63325745,115170.0,115160.0,0.76869879]
[1757687767001,0.39575,115170.0,115160.0,0.76869879]
[1757687768304,0.39575,115170.0,115160.0,0.78160879]
[1757687768503,0.39575,115170.0,115160.0,0.30659389]
[1757687768703,0.39575,115170.0,115160.0,0.76869879]
[1757687770294,0.39575,115170.0,115160.0,0.29368389]
[1757687770500,0.39575,115170.0,115160.0,0.76869879]
[1757687770694,0.88325745,115170.0,115160.0,0.02331]
[1757687770901,0.03488,115150.0,115140.0,0.09306952]
[1757687771105,0.99398745,115150.0,115140.0,0.33057697]
[1757687771292,0.99398745,115150.0,115140.0,0.09306952]
[1757687771599,0.99398745,115150.0,115140.0,0.33057697]
[1757687772302,0.99398745,115150.0,115140.0,0.33257697]
[1757687773104,0.99398745,115150.0,115140.0,0.57008442]
[1757687773502,0.75648,115150.0,115140.0,0.57008442]
[1757687773706,0.99398745,115150.0,115140.0,0.57008442]
[1757687774207,0.99398745,115150.0,115140.0,0.09606952]
[1757687774506,0.75648,115150.0,115140.0,0.57108442]
[1757687775109,0.75648,115150.0,115140.0,0.57008442]
[1757687776107,0.75648,115150.0,115140.0,0.09506952]
[1757687776302,0.75648,115150.0,115140.0,0.57008442]
[1757687776498,0.75648,115150.0,115140.0,0.09506952]
[1757687776808,0.75648,115150.0,115140.0,0.57008442]
[1757687777009,0.75648,115150.0,115140.0,0.09506952]
[1757687777208,0.75648,115150.0,115140.0,0.57008442]
[1757687777407,0.39568,115150.0,115140.0,0.57008442]
[1757687778713,0.39568,115150.0,115140.0,0.09506952]
[1757687778918,0.39568,115150.0,115140.0,0.57008442]
[1757687779112,0.39568,115150.0,115140.0,0.09506952]
[1757687779512,0.39568,115150.0,115140.0,0.57008442]
[1757687780118,0.39568,115150.0,115140.0,0.09506952]
[1757687780310,0.39568,115150.0,115140.0,0.57008442]
[1757687781011,0.39568,115150.0,115140.0,0.09506952]
[1757687781212,0.63318745,115150.0,115140.0,0.57008442]
[1757687781907,0.63318745,115150.0,115140.0,0.09506952]
[1757687782106,0.63318745,115150.0,115140.0,0.57008442]
[1757687782512,0.63318745,115150.0,115140.0,0.09506952]
[1757687782714,1.24398745,115150.0,115140.0,0.0247]
[1757687782909,1.24398745,115150.0,115140.0,0.002]
[1757687782910,1.4814949,115150.0,115140.0,0.002]
[1757687783110,1.81636,115150.0,115140.0,0.002]
[1757687783312,2.2913749,115150.0,115140.0,0.002]
[1757687784018,2.2999756,115150.0,115140.0,0.002]
[1757687785020,1.4900956,115150.0,115140.0,0.002]
[1757687785222,2.06242815,115150.0,115140.0,0.002]
[1757687785717,1.00648,115150.0,115140.0,0.0237]
[1757687786019,0.75648,115150.0,115140.0,0.4987149]
[1757687786521,0.99398745,115150.0,115140.0,0.26120745]
[1757687787216,0.99398745,115150.0,115140.0,0.0237]
[1757687787416,0.99398745,115150.0,115140.0,0.4987149]
[1757687787720,0.75648,115150.0,115140.0,0.4987149]
[1757687787924,0.75648,115150.0,115140.0,0.03573]
[1757687788224,0.75648,115150.0,115140.0,0.5107449]
[1757687788225,0.99398745,115150.0,115140.0,0.5107449]
[1757687788519,0.75648,115150.0,115140.0,0.5107449]
[1757687789535,0.75648,115150.0,115140.0,0.03573]
[1757687789718,0.75648,115150.0,115140.0,0.5107449]
[1757687789917,0.75648,115150.0,115140.0,0.0237]
[1757687790319,0.99398745,115150.0,115140.0,0.4987149]
[1757687790520,0.99398745,115150.0,115140.0,0.0237]
[1757687790724,0.99398745,115150.0,115140.0,0.4987149]
[1757687790921,0.99398745,115150.0,115140.0,0.26120745]
[1757687791127,0.99398745,115150.0,115140.0,0.002]
[1757687791322,1.2314949,115150.0,115140.0,0.002]
[1757687791628,0.75648,115150.0,115140.0,0.002]
[1757687791828,0.99398745,115150.0,115140.0,0.002]
[1757687792322,1.4814949,115150.0,115140.0,0.002]
[1757687792919,1.00648,115150.0,115140.0,0.002]
[1757687793120,1.4814949,115150.0,115140.0,0.002]
[1757687793429,1.55045557,115150.0,115140.0,0.002]
[1757687794240,1.07544067,115150.0,115140.0,0.002]
[1757687794535,1.55045557,115150.0,115140.0,0.002]
[1757687794937,1.88520067,115150.0,115140.0,0.002]
[1757687795142,2.36021557,115150.0,115140.0,0.002]
[1757687795740,1.55045557,115150.0,115140.0,0.002]
[1757687795930,1.07544067,115150.0,115140.0,0.002]
[1757687796129,1.88524067,115150.0,115140.0,0.0237]
[1757687796342,2.12274812,115150.0,115140.0,0.0237]
[1757687796534,2.12274812,115150.0,115140.0,0.002]
[1757687797340,1.88784067,115150.0,115140.0,0.002]
[1757687797534,2.12538812,115150.0,115140.0,0.002]
[1757687797838,1.88788067,115150.0,115140.0,0.002]
[1757687798232,2.12538812,115150.0,115140.0,0.002]
[1757687798634,2.12538812,115150.0,115140.0,0.0237]
[1757687798840,1.88788067,115150.0,115140.0,0.0237]
[1757687799132,2.12538812,115150.0,115140.0,0.002]
[1757687799433,2.11289557,115150.0,115140.0,0.002]
[1757687799628,2.11293557,115150.0,115140.0,0.002]
[1757687800025,1.63792067,115150.0,115140.0,0.002]
[1757687800239,2.11293557,115150.0,115140.0,0.002]
[1757687800439,0.02234,115110.0,115100.0,0.40074593]
[1757687800635,0.38223165,115110.0,115100.0,0.73825338]
[1757687800941,0.36902165,115110.0,115100.0,0.52910396]
[1757687801138,0.36902165,115110.0,115100.0,0.05408906]
[1757687801339,0.6197391,115110.0,115100.0,0.29159651]
[1757687801540,0.6197391,115110.0,115100.0,0.04205906]
[1757687801731,0.6197391,115110.0,115100.0,0.27956651]
[1757687802046,0.6197391,115110.0,115100.0,0.35028711]
[1757687802226,0.38223165,115110.0,115100.0,0.11277966]
[1757687802431,0.6197391,115110.0,115100.0,0.35028711]
[1757687802738,0.6197391,115110.0,115100.0,0.35628711]
[1757687802945,0.38223165,115110.0,115100.0,0.12277966]
[1757687803130,0.38223165,115110.0,115100.0,0.59779456]
[1757687803326,0.38314,115120.0,115110.0,0.03542]
[1757687803534,0.38314,115120.0,115110.0,0.27292745]
[1757687804634,0.39635,115120.0,115110.0,0.27292745]
[1757687804835,0.39635,115120.0,115110.0,0.26220745]
[1757687805031,0.39635,115120.0,115110.0,0.0247]
[1757687805235,0.63385745,115120.0,115110.0,0.26220745]
[1757687805638,0.39635,115120.0,115110.0,0.26220745]
[1757687805942,0.63385745,115120.0,115110.0,0.26620745]
[1757687806943,0.39635,115120.0,115110.0,0.26620745]
[1757687807244,0.63385745,115120.0,115110.0,0.26620745]
[1757687807546,0.8713649,115120.0,115110.0,0.007]
[1757687808238,0.8713649,115120.0,115110.0,0.26620745]
[1757687808842,0.8713649,115120.0,115110.0,0.0287]
[1757687809046,0.8713649,115120.0,115110.0,0.26620745]
[1757687809242,0.8713649,115120.0,115110.0,0.0287]
[1757687809439,0.8713649,115120.0,115110.0,0.26620745]
[1757687809744,0.8713649,115120.0,115110.0,0.0287]
[1757687810243,1.21135,115120.0,115110.0,0.0287]
[1757687810428,1.44885745,115120.0,115110.0,0.0287]
[1757687810630,1.21135,115120.0,115110.0,0.26620745]
[1757687810834,1.44885745,115120.0,115110.0,0.26620745]
[1757687811046,1.44885745,115120.0,115110.0,0.0287]
[1757687811249,1.6863649,115120.0,115110.0,0.007]
[1757687811537,0.03555,115100.0,115090.0,0.27981753]
[1757687811737,0.98053692,115100.0,115090.0,0.29353753]
[1757687812846,0.74302947,115100.0,115090.0,0.29353753]
[1757687813145,1.57383947,115100.0,115090.0,0.02061008]
[1757687813346,2.04885437,115100.0,115090.0,0.02061008]
[1757687813647,2.04885437,115100.0,115090.0,0.02461008]
[1757687814349,1.89408068,115100.0,115090.0,0.005]
[1757687814539,1.29996433,115100.0,115090.0,0.005]
[1757687814844,2.11740433,115100.0,115090.0,0.005]
[1757687815446,2.11940433,115100.0,115090.0,0.001]
[1757687816142,0.03496,115080.0,115070.0,0.04311695]
[1757687816343,0.03496,115080.0,115070.0,0.05659695]
[1757687816344,1.43628365,115080.0,115070.0,0.05659695]
[1757687816739,1.21324,115080.0,115070.0,0.05659695]
[1757687817247,1.19959,115080.0,115070.0,0.05659695]
[1757687817439,0.38211,115080.0,115070.0,0.05759695]
[1757687817941,0.38211,115080.0,115070.0,0.2806406]
[1757687819652,0.38211,115080.0,115070.0,0.2836406]
[1757687820242,0.38211,115080.0,115070.0,0.2806406]
[1757687820451,0.38471,115080.0,115070.0,0.2806406]
[1757687820851,0.38471,115080.0,115070.0,0.2796406]
[1757687821052,0.38671,115080.0,115070.0,0.2796406]
[1757687821253,0.40036,115080.0,115070.0,0.04311695]
[1757687821557,0.40036,115080.0,115070.0,0.2661606]
[1757687821852,0.40036,115080.0,115070.0,0.04311695]
[1757687822055,0.76116,115080.0,115070.0,0.02251]
[1757687822353,0.98420365,115080.0,115070.0,0.02251]
[1757687822750,0.03496,115070.0,115060.0,0.11398414]
[1757687822953,0.3816361,115070.0,115060.0,0.32855236]
[1757687823255,0.3816361,115070.0,115060.0,0.10550871]
[1757687823450,0.3816361,115070.0,115060.0,0.03623]
[1757687823649,0.61059975,115070.0,115060.0,0.02251]
[1757687824155,0.3875561,115070.0,115060.0,0.02251]
[1757687824747,0.3816361,115070.0,115060.0,0.03599]
[1757687824952,1.2051161,115070.0,115060.0,0.03599]
[1757687825149,1.2110361,115070.0,115060.0,0.02251]
[1757687825550,1.43262762,115070.0,115050.0,0.04278838]
[1757687825748,0.61735152,115060.0,115040.0,0.01348]
[1757687826053,0.03496,115040.0,115030.0,0.02251]
[1757687826249,0.38728355,115040.0,115030.0,0.03601836]
[1757687826449,0.37363355,115040.0,115030.0,0.03599]
[1757687826759,0.37363355,115040.0,115030.0,0.25758152]
[1757687827057,0.37363355,115040.0,115030.0,0.26629559]
[1757687827351,0.37363355,115040.0,115030.0,0.03599]
[1757687827745,0.37363355,115040.0,115030.0,0.25758152]
[1757687827947,0.37363355,115040.0,115030.0,0.03599]
[1757687828244,0.37363355,115040.0,115030.0,0.26058152]
[1757687828645,0.3608,115040.0,115030.0,0.51058152]
[1757687828845,0.3608,115040.0,115030.0,0.51258152]
[1757687829247,0.3608,115040.0,115030.0,0.29099]
[1757687829448,0.38211,115040.0,115030.0,0.29099]
[1757687829646,0.38211,115040.0,115030.0,0.51258152]
[1757687830045,0.3608,115040.0,115030.0,0.77948472]
[1757687830456,0.3608,115040.0,115030.0,0.3778932]
[1757687830657,0.3608,115040.0,115030.0,0.29945423]
[1757687830848,0.3608,115040.0,115030.0,0.52104575]
[1757687830849,0.38211,115040.0,115030.0,0.52104575]
[1757687831156,0.38211,115040.0,115030.0,0.29945423]
[1757687831359,0.38211,115040.0,115030.0,0.52104575]
[1757687831655,0.38211,115040.0,115030.0,0.51258152]
[1757687832959,0.38211,115040.0,115030.0,0.29099]
[1757687833153,0.3608,115040.0,115030.0,0.51258152]